lending/lending_fUSD_20240603
["ID","MTS","AMOUNT","RATE_DAILY","PERIOD"]
[328471984,1717423865905,-163.95,0.00033288,2]
[328471985,1717423865914,-150.0,0.00033288,2]
[328471986,1717423865926,-352.88,0.00033288,2]
[328471987,1717423865936,-422.0,0.00033288,2]
[328471988,1717423865946,-150.0,0.00033288,2]
[328471989,1717423865955,-150.0,0.00033288,2]
[328471990,1717423865964,-150.0,0.00033288,2]
[328471991,1717423865974,-352.88,0.00033288,2]
[328471992,1717423865984,-422.0,0.00033288,2]
[328471993,1717423865993,-150.0,0.00033288,2]
[328471994,1717423866002,-150.0,0.00033288,2]
[328471995,1717423866012,-163.95,0.00033288,2]
[328471996,1717423866020,-150.0,0.00033288,2]
[328471997,1717423866030,-422.0,0.00033288,2]
[328471998,1717423866039,-352.88,0.00033288,2]
[328471999,1717423866049,-150.0,0.00033288,2]
[328472000,1717423866058,-150.0,0.00033288,2]
[328472001,1717423866068,-150.0,0.00033288,2]
[328472002,1717423866078,-163.95,0.00033288,2]
[328472003,1717423866088,-422.0,0.00033288,2]
[328472004,1717423866098,-352.88,0.00033288,2]
[328472005,1717423866108,-163.95,0.00033288,2]
[328472006,1717423866117,-352.88,0.00033288,2]
[328472007,1717423866127,-150.0,0.00033288,2]
[328472008,1717423866136,-150.0,0.00033288,2]
[328472009,1717423866146,-422.0,0.00033288,2]
[328472010,1717423866155,-352.88,0.00033288,2]
[328472011,1717423866164,-150.0,0.00033288,2]
[328472012,1717423866173,-163.95,0.00033288,2]
[328472013,1717423866182,-150.0,0.00033288,2]
[328472014,1717423866192,-422.0,0.00033288,2]
[328472015,1717423866201,-352.88,0.00033288,2]
[328472016,1717423866211,-150.0,0.00033288,2]
[328472017,1717423866220,-150.0,0.00033288,2]
[328472018,1717423866230,-422.0,0.00033288,2]
[328472019,1717423866239,-163.95,0.00033288,2]
[328472020,1717423866248,-150.0,0.00033288,2]
[328472021,1717423866257,-422.0,0.00033288,2]
[328472022,1717423866267,-150.0,0.00033288,2]
[328472023,1717423866276,-163.95,0.00033288,2]
[328472024,1717423866286,-352.88,0.00033288,2]
[328472025,1717423866295,-422.0,0.00033288,2]
[328472026,1717423866305,-150.0,0.00033288,2]
[328472027,1717423866314,-150.0,0.00033288,2]
[328472028,1717423866323,-352.88,0.00033288,2]
[328472029,1717423866333,-163.95,0.00033288,2]
[328472030,1717423866343,-422.0,0.00033288,2]
[328472031,1717423866353,-352.88,0.00033288,2]
[328472032,1717423866363,-150.0,0.00033288,2]
[328472033,1717423866372,-150.0,0.00033288,2]
[328472034,1717423866381,-422.0,0.00033288,2]
[328472035,1717423866391,-150.0,0.00033288,2]
[328472036,1717423866403,-163.95,0.00033288,2]
[328472037,1717423866411,-422.0,0.00033288,2]
[328472038,1717423866420,-422.0,0.00033288,2]
[328472039,1717423866429,-352.88,0.00033288,2]
[328472040,1717423866438,-150.0,0.00033288,2]
[328472041,1717423866448,-150.0,0.00033288,2]
[328472042,1717423866457,-163.95,0.00033288,2]
[328472043,1717423866467,-422.0,0.00033288,2]
[328472044,1717423866476,-352.88,0.00033288,2]
[328472045,1717423866485,-150.0,0.00033288,2]
[328472046,1717423866495,-150.0,0.00033288,2]
[328472047,1717423866504,-163.95,0.00033288,2]
[328472048,1717423866513,-352.88,0.00033288,2]
[328472049,1717423866522,-163.95,0.00033288,2]
[328472050,1717423866535,-150.0,0.00033288,2]
[328472051,1717423866544,-150.0,0.00033288,2]
[328472052,1717423866554,-352.88,0.00033288,2]
[328472053,1717423866563,-163.95,0.00033288,2]
[328472054,1717423866573,-422.0,0.00033288,2]
[328472055,1717423866582,-150.0,0.00033288,2]
[328472056,1717423866591,-163.95,0.00033288,2]
[328472057,1717423866601,-352.88,0.00033288,2]
[328472058,1717423866611,-422.0,0.00033288,2]
[328472059,1717423866620,-150.0,0.00033288,2]
[328472060,1717423866630,-422.0,0.00033288,2]
[328472061,1717423866639,-346.54,0.00033288,2]
[328472062,1717423866650,-150.0,0.00033288,2]
[328472063,1717423866659,-162.17,0.00033288,2]
[328472064,1717423866669,-150.0,0.00033288,2]
[328472065,1717423866678,-150.0,0.00033288,2]
[328472066,1717423866688,-150.0,0.00033288,2]
[328472067,1717423866697,-239.42,0.00033288,2]
[328472068,1717423866707,-269.12,0.00033288,2]
[328472069,1717423866716,-235.86,0.00033288,2]
[328472070,1717423866725,-206.12,0.00033288,2]
[328472071,1717423866735,-307.55,0.00033288,7]
[328472072,1717423866744,-307.55,0.00033288,7]
[328472073,1717423866753,-172.0,0.0003329,26]
[328472074,1717423866763,-150.01,0.00033297,2]
[328472075,1717423866772,-2897.62768385,0.00033297,2]
[328472076,1717423866782,-301.81884233,0.00033298,2]
[328472077,1717423866792,-7528.26513526,0.00033298,4]
[328472078,1717423866802,-4436.90604673,0.00033298,4]
[328472079,1717423866811,-5284.55875445,0.00033298,4]
[328472080,1717423866821,-155.0,0.00033298,4]
[328472081,1717423866831,-224.88847247,0.00033298,4]
[328472082,1717423866843,-1260.05713878,0.00033298,4]
[328472083,1717423866853,-155.0,0.00033298,4]
[328472084,1717423866863,-246.72666541,0.00033298,4]
[328472085,1717423866872,-576.27800169,0.00033298,7]
[328472086,1717423866882,-495.69356927,0.00033298,4]
[328472087,1717423866892,-1979.14657313,0.00033298,4]
[328472088,1717423866903,-18260.14315627,0.00033298,4]
[328472089,1717423866913,-482372.8152628,0.00033298,7]
[328472090,1717423866924,-411.3026678,0.00033298,2]
[328472091,1717423866934,-644.64661214,0.00033298,4]
[328472092,1717423866944,-740.96705946,0.00033298,5]
[328472093,1717423866953,-155.0,0.00033298,4]
[328472094,1717423866962,-325.53303523,0.00033298,2]
[328472095,1717423866972,-4163.8478063,0.00033298,4]
[328472096,1717423866980,-277.83254392,0.00033298,4]
[328472097,1717423866990,-251.09515456,0.00033298,4]
[328472098,1717423866999,-203.09110545,0.00033298,4]
[328472099,1717423867008,-2053.44124277,0.00033298,4]
[328472100,1717423867018,-23998.01655034,0.00033298,5]
[328472101,1717423867027,-782.68805491,0.00033298,4]
[328472102,1717423867036,-267.98544995,0.00033298,4]
[328472103,1717423867046,-155.38754712,0.00033298,4]
[328472104,1717423867056,-6786.64428082,0.00033298,4]
[328472105,1717423867065,-162.1014602,0.00033298,4]
[328472106,1717423867075,-158.0964661,0.00033298,4]
[328472107,1717423867084,-789.37013607,0.00033298,4]
[328472108,1717423867094,-542.85940274,0.00033298,4]
[328472109,1717423867103,-13221.86200099,0.00033298,30]
[328472110,1717423867113,-184.79205791,0.00033298,4]
[328472111,1717423867122,-4183.75342342,0.00033298,4]
[328472112,1717423867131,-854.48115241,0.00033298,2]
[328472113,1717423867140,-1044.60234911,0.00033298,4]
[328472114,1717423867152,-155.0,0.00033298,4]
[328472115,1717423867161,-325.53994662,0.00033298,4]
[328472116,1717423867171,-463.01796351,0.00033298,4]
[328472117,1717423867180,-498.91056803,0.00033298,4]
[328472118,1717423867190,-283.49824734,0.00033298,4]
[328472119,1717423867199,-620.02261849,0.00033298,4]
[328472120,1717423867208,-307.55,0.00033298,7]
[328472121,1717423867217,-307.55,0.00033298,7]
[328472122,1717423867226,-1000.0,0.00033299,30]
[328472123,1717423867235,-1000.0,0.00033299,30]
[328472124,1717423867245,-1000.0,0.00033299,30]
[328472125,1717423867255,-1000.0,0.00033299,30]
[328472126,1717423867264,-1046.63764764,0.00033299,30]
[328472127,1717423867273,-257.76309621,0.00033299,4]
[328472128,1717423867282,-446.44016402,0.00033299,2]
[328472129,1717423867292,-410.42983639,0.00033299,4]
[328472130,1717423867303,-15096.72534851,0.00033299,7]
[328472131,1717423867313,-151.0,0.00033299,7]
[328472132,1717423867322,-1418.76264738,0.000333,5]
[328472133,1717423867332,-669892.0773759,0.000333,5]
[328472134,1717423867341,-1335296.44405766,0.000333,5]
[328472135,1717423867369,-681.62392278,0.00030407,4]
[328472136,1717423867378,-150.0,0.00032466,2]
[328472137,1717423867388,-82777.65368722,0.000333,5]
[328472138,1717423867403,-42139.09549602,0.000333,5]
[328472139,1717423867415,-517.03487054,0.000333,5]
[328472140,1717423867609,1033.0,0.000247,5]
[328472141,1717423867698,-332.068,0.00030136,4]
[328472142,1717423867884,-167.932,0.00030136,4]
[328472143,1717423867895,-500.0,0.00030136,4]
[328472144,1717423867907,-1088.45,0.00030948,10]
[328472145,1717423867916,-500.0,0.00030958,4]
[328472146,1717423867925,-632.58,0.00031232,4]
[328472147,1717423867936,-352.88,0.00032466,2]
[328472148,1717423867946,-150.0,0.00032466,2]
[328472149,1717423867957,-525.57,0.00033288,2]
[328472150,1717423867967,-151.75,0.00033288,2]
[328472151,1717423867976,-223.77635052,0.00033288,2]
[328472152,1717423867989,-664.66364948,0.00033288,2]
[328472153,1717423867999,-525.57,0.00033288,2]
[328472154,1717423868010,-525.57,0.00033288,2]
[328472155,1717423868021,-446809.6794933,0.000333,5]
[328472156,1717423868033,-13982.90017683,0.000333,5]
[328472157,1717423868235,224.88847247,0.00025,2]
[328472158,1717423868529,3508.52823718,0.00030463,30]
[328472159,1717423868574,2609.8027349,0.00024402,2]
[328472160,1717423868760,374.70399389,0.000249,7]
[328472161,1717423872810,4603.58438402,0.00017259,2]
[328472163,1717423946627,562.66712687,0.00017259,2]
[328472164,1717423964743,500.0,0.00024384,2]
[328472165,1717423965084,500.0,0.00024384,2]
[328472166,1717423968606,500.0,0.00024384,2]
[328472167,1717423968956,582.0,0.00024384,2]
[328472171,1717424231209,159.61,0.00024384,2]
[328472172,1717424242639,502.23967012,0.000219,2]
[328472174,1717424459906,22186.38290979,0.00021,2]
[328472178,1717424625596,1250.0,0.00025,2]
[328472180,1717424824660,157.08,0.00024384,2]
[328472199,1717425031980,-1486.109679,0.00025772,2]
[328472201,1717425031990,-500.0,0.00025902,2]
[328472202,1717425032000,-500.0,0.00025902,2]
[328472203,1717425032010,-500.0,0.00025902,2]
[328472204,1717425032019,-600.0,0.00025902,2]
[328472205,1717425032029,-750.54532308,0.00026,5]
[328472207,1717425032182,-530.44,0.00026,5]
[328472228,1717425037879,-2315.25871043,0.00026,5]
[328472231,1717425037891,-801.80856444,0.00026,5]
[328472233,1717425037902,-16255.96984281,0.00026,5]
[328472234,1717425038097,-1047.55412974,0.00026,5]
[328472235,1717425038111,-1800.18474667,0.00026,5]
[328472236,1717425038120,-300.0,0.00026107,2]
[328472237,1717425038130,-500.0,0.00026998,2]
[328472238,1717425038140,-500.0,0.00026998,2]
[328472239,1717425038150,-1577.29,0.00026998,2]
[328472240,1717425038160,-1300.0,0.00027,2]
[328472241,1717425038173,-605.06,0.00027062,2]
[328472242,1717425038182,-1054.56525345,0.000274,3]
[328472243,1717425038427,-14.43474655,0.000274,3]
[328472244,1717425038437,-151.0,0.00027634,5]
[328472245,1717425038446,-300.0,0.00027738,2]
[328472246,1717425038456,-150.42294081,0.00028,3]
[328472247,1717425038466,-500.0,0.00028094,2]
[328472248,1717425038476,-151.0,0.00028578,7]
[328472249,1717425038486,-150.0,0.00028707,2]
[328472250,1717425038495,-167.14,0.00028764,2]
[328472251,1717425038505,-200.0,0.00028789,2]
[328472252,1717425038515,-1000.0,0.00028843,2]
[328472254,1717425038526,-250.0,0.0002885,2]
[328472256,1717425038535,-224.59,0.0002886,2]
[328472258,1717425038546,-250.0,0.00028862,2]
[328472260,1717425038556,-250.0,0.00028863,2]
[328472262,1717425038566,-226.01,0.00028869,2]
[328472264,1717425038576,-165.69,0.00028881,2]
[328472266,1717425038585,-507.32294824,0.00029147,2]
[328472268,1717425038595,-157.45,0.00029148,2]
[328472270,1717425038605,-153.49,0.00029177,2]
[328472272,1717425038614,-500.0,0.0002919,2]
[328472274,1717425038624,-605.06,0.00029326,2]
[328472276,1717425038634,-300.0,0.0002937,2]
[328472278,1717425038643,-612.86454368,0.0002949,2]
[328472280,1717425038653,-153.52222147,0.00029515,2]
[328472282,1717425038663,-151.0,0.00029522,7]
[328472284,1717425038675,-150.79906215,0.00029584,2]
[328472286,1717425038684,-157.4433695,0.00029638,2]
[328472288,1717425038694,-612.86454368,0.00029687,2]
[328472290,1717425038703,-612.86454368,0.00029721,2]
[328472292,1717425038712,-612.86454368,0.00029731,2]
[328472294,1717425038722,-167.0,0.00029741,2]
[328472296,1717425038732,-155.17093397,0.00029742,2]
[328472298,1717425038742,-157.4433695,0.00029749,2]
[328472300,1717425038752,-150.79906215,0.00029795,2]
[328472302,1717425038762,-150.79906215,0.00029803,2]
[328472304,1717425038772,-150.79906218,0.00029884,2]
[328472306,1717425038782,-612.86454368,0.0002995,2]
[328472308,1717425038792,-612.86454368,0.00030123,7]
[328472310,1717425038801,-500.0,0.00030136,4]
[328472312,1717425038811,-500.0,0.00030136,4]
[328472314,1717425038820,-500.0,0.00030136,4]
[328472316,1717425038830,-500.0,0.00030136,4]
[328472317,1717425038839,-500.0,0.00030136,4]
[328472320,1717425038849,-500.0,0.00030136,4]
[328472322,1717425038859,-612.86454368,0.00030239,7]
[328472323,1717425038868,-500.0,0.00030286,10]
[328472326,1717425038878,-157.6094779,0.00030337,4]
[328472328,1717425038888,-150.0,0.00030357,7]
[328472330,1717425038897,-612.86454368,0.00030374,7]
[328472332,1717425038908,-166.59345461,0.00030406,4]
[328472333,1717425038917,-155.31066144,0.00030406,4]
[328472335,1717425038929,-182.17936213,0.00030406,4]
[328472337,1717425038938,-156.14590386,0.00030406,4]
[328472340,1717425038947,-164.65478921,0.00030406,4]
[328472342,1717425038957,-155.10286068,0.00030406,4]
[328472344,1717425038966,-328.16762676,0.00030406,4]
[328472345,1717425038975,-166.66666666,0.00030406,7]
[328472348,1717425038985,-504.08945764,0.00030408,4]
[328472349,1717425038994,-500.0,0.00030408,4]
[328472351,1717425039003,-500.0,0.00030408,4]
[328472354,1717425039014,-500.0,0.00030408,4]
[328472355,1717425039024,-500.0,0.00030408,4]
[328472356,1717425039034,-511.03458198,0.00030408,4]
[328472357,1717425039044,-401.1902654,0.00030408,4]
[328472358,1717425039054,-500.0,0.0003041,4]
[328472359,1717425039064,-155.84643114,0.00030461,4]
[328472360,1717425039074,-155.81695383,0.00030461,4]
[328472361,1717425039084,-222.65194756,0.00030461,4]
[328472362,1717425039094,-156.9828147,0.00030461,4]
[328472363,1717425039103,-731.87965211,0.00030461,4]
[328472364,1717425039113,-156.59566531,0.00030461,4]
[328472365,1717425039123,-155.45609756,0.00030461,4]
[328472366,1717425039132,-281.88330445,0.00030461,4]
[328472367,1717425039143,-267.96249102,0.00030461,4]
[328472368,1717425039153,-325.92527991,0.00030461,4]
[328472369,1717425039162,-1803.30077465,0.00030461,4]
[328472370,1717425039181,-234.25383046,0.00030461,4]
[328472372,1717425039192,-155.35168735,0.00030461,4]
[328472374,1717425039203,-206.66142766,0.00030461,4]
[328472376,1717425039213,-2888.86464277,0.00030462,4]
[328472378,1717425039224,-344.8307424,0.00030462,4]
[328472380,1717425039238,-215.66238223,0.00030462,4]
[328472382,1717425039248,-308.13866353,0.00030462,4]
[328472384,1717425039258,-151.0,0.00030466,7]
[328472386,1717425039268,-2166.6333,0.00030484,2]
[328472388,1717425039278,-755.87,0.0003052,10]
[328472390,1717425039288,-158.54105395,0.0003053,7]
[328472392,1717425039302,-12106.6915,0.00030584,2]
[328472395,1717425039313,-482.4678,0.00030584,2]
[328472397,1717425039324,-159.25974204,0.00030628,7]
[328472399,1717425039334,-907.05,0.00030674,10]
[328472401,1717425039345,-612.86454368,0.00030747,7]
[328472403,1717425039356,-153.52222147,0.00030828,7]
[328472405,1717425039366,-291.0031,0.00030856,2]
[328472407,1717425039376,-187.7553,0.00030856,2]
[328472409,1717425039386,-1165.0921,0.00030856,2]
[328472411,1717425039396,-1120.2674,0.00030856,2]
[328472413,1717425039407,-322.89640249,0.00030956,4]
[328472415,1717425039417,-168.29483398,0.00030956,4]
[328472417,1717425039431,-155.9680426,0.00030956,4]
[328472419,1717425039440,-1278.70750154,0.00030956,4]
[328472421,1717425039450,-523.82451147,0.00030956,4]
[328472423,1717425039460,-210.39913373,0.00030956,4]
[328472424,1717425039469,-857.85294045,0.00030956,4]
[328472426,1717425039479,-9739.74289968,0.00030956,4]
[328472427,1717425039488,-197.10470978,0.00030956,4]
[328472429,1717425039498,-229.7004865,0.00030956,4]
[328472431,1717425039507,-155.0,0.00030956,4]
[328472433,1717425039517,-156.82193563,0.00030956,4]
[328472435,1717425039527,-2331.50342214,0.00030956,4]
[328472437,1717425039537,-155.0,0.00030956,4]
[328472439,1717425039546,-157.26656919,0.00030956,4]
[328472441,1717425039556,-1796.93110706,0.00030956,4]
[328472443,1717425039566,-265.16531005,0.00030956,4]
[328472445,1717425039575,-205.80473439,0.00030956,4]
[328472447,1717425039585,-623.47628621,0.00030956,4]
[328472449,1717425039596,-7526.23404168,0.00030956,4]
[328472451,1717425039606,-1387.20873514,0.00030956,4]
[328472453,1717425039617,-155.0,0.00030956,4]
[328472455,1717425039627,-1258.86655938,0.00030956,4]
[328472457,1717425039637,-156.27696473,0.00030956,4]
[328472459,1717425039646,-263.32579252,0.00030957,4]
[328472461,1717425039656,-4282.56969523,0.00030957,4]
[328472462,1717425039665,-1996.91763044,0.00030957,4]
[328472464,1717425039677,-158.29323863,0.00030957,4]
[328472466,1717425039686,-160.82171851,0.00030957,4]
[328472468,1717425039697,-1000.0,0.00030957,4]
[328472470,1717425039706,-300.0,0.00031002,2]
[328472472,1717425039716,-530.44,0.00031018,3]
[328472474,1717425039726,-16676.5093,0.00031028,7]
[328472476,1717425039736,-174.1821,0.00031028,2]
[328472479,1717425039746,-612.86454368,0.00031108,7]
[328472481,1717425039756,-728.12059963,0.00031117,15]
[328472482,1717425039765,-500.0,0.00031127,4]
[328472484,1717425039775,-500.0,0.00031127,4]
[328472486,1717425039786,-500.0,0.00031127,4]
[328472488,1717425039796,-500.0,0.00031127,4]
[328472490,1717425039807,-500.0,0.00031127,4]
[328472492,1717425039818,-500.0,0.00031127,4]
[328472494,1717425039828,-500.0,0.00031127,4]
[328472496,1717425039838,-500.0,0.00031127,4]
[328472498,1717425039848,-500.0,0.00031127,4]
[328472500,1717425039858,-500.0,0.00031127,4]
[328472502,1717425039869,-500.0,0.00031127,4]
[328472504,1717425039879,-511.09607297,0.00031127,4]
[328472506,1717425039890,-500.0,0.00031127,4]
[328472508,1717425039900,-500.0,0.00031127,4]
[328472510,1717425039911,-500.0,0.00031127,4]
[328472512,1717425039921,-506.1565305,0.00031127,4]
[328472514,1717425039932,-500.0,0.00031127,4]
[328472516,1717425039942,-500.0,0.00031127,4]
[328472519,1717425039952,-500.0,0.00031127,4]
[328472522,1717425039962,-500.0,0.00031127,4]
[328472525,1717425039972,-500.0,0.00031127,4]
[328472527,1717425039982,-500.0,0.00031127,4]
[328472529,1717425039992,-500.0,0.00031128,4]
[328472532,1717425040002,-500.0,0.00031128,4]
[328472535,1717425040012,-500.0,0.00031128,4]
[328472537,1717425040022,-500.0,0.00031128,4]
[328472539,1717425040032,-500.0,0.00031128,4]
[328472541,1717425040042,-500.0,0.00031128,4]
[328472543,1717425040052,-500.0,0.00031128,4]
[328472545,1717425040062,-501.46759596,0.00031128,4]
[328472547,1717425040072,-500.0,0.00031128,4]
[328472549,1717425040081,-500.0,0.00031128,4]
[328472551,1717425040092,-500.0,0.00031128,4]
[328472553,1717425040102,-500.0,0.00031128,4]
[328472555,1717425040113,-500.0,0.00031128,4]
[328472557,1717425040122,-500.0,0.00031128,4]
[328472559,1717425040133,-500.0,0.00031128,4]
[328472560,1717425040143,-598.36979753,0.00031128,4]
[328472561,1717425040153,-500.0,0.00031128,4]
[328472562,1717425040163,-500.0,0.00031128,4]
[328472563,1717425040175,-500.0,0.00031128,4]
[328472564,1717425040185,-500.0,0.00031128,4]
[328472565,1717425040196,-500.0,0.00031128,4]
[328472566,1717425040212,-500.0,0.00031128,4]
[328472567,1717425040222,-500.0,0.00031128,4]
[328472568,1717425040232,-630.91,0.00031128,4]
[328472569,1717425040242,-500.0,0.00031128,4]
[328472570,1717425040254,-500.0,0.00031128,4]
[328472571,1717425040264,-500.0,0.00031128,4]
[328472572,1717425040274,-1049.87796177,0.00031128,4]
[328472573,1717425040285,-500.0,0.00031128,4]
[328472574,1717425040296,-500.0,0.00031128,4]
[328472575,1717425040306,-611.19820321,0.00031128,4]
[328472576,1717425040317,-500.0,0.00031128,4]
[328472577,1717425040327,-500.0,0.00031128,4]
[328472578,1717425040337,-500.0,0.00031128,4]
[328472579,1717425040348,-500.0,0.00031128,4]
[328472580,1717425040358,-500.0,0.00031128,4]
[328472581,1717425040369,-500.0,0.00031128,4]
[328472582,1717425040379,-500.0,0.00031128,4]
[328472583,1717425040389,-500.0,0.00031128,4]
[328472584,1717425040399,-500.0,0.00031128,4]
[328472585,1717425040410,-500.0,0.00031128,4]
[328472586,1717425040420,-500.0,0.00031128,4]
[328472587,1717425040432,-500.0,0.00031128,4]
[328472588,1717425040443,-500.0,0.00031128,4]
[328472589,1717425040453,-500.0,0.00031128,4]
[328472590,1717425040463,-500.0,0.00031128,4]
[328472591,1717425040473,-511.80084286,0.00031128,4]
[328472592,1717425040483,-500.0,0.00031128,4]
[328472593,1717425040493,-500.0,0.00031128,4]
[328472594,1717425040504,-500.0,0.00031128,4]
[328472595,1717425040514,-500.0,0.00031128,4]
[328472596,1717425040524,-500.0,0.00031128,4]
[328472597,1717425040672,-500.0,0.00031128,4]
[328472598,1717425040685,-533.82347897,0.00031128,4]
[328472599,1717425040695,-500.0,0.00031128,4]
[328472600,1717425040706,-500.0,0.00031128,4]
[328472601,1717425040716,-500.0,0.00031128,4]
[328472602,1717425040726,-500.0,0.00031128,4]
[328472603,1717425040736,-501.32,0.00031128,4]
[328472604,1717425040747,-500.0,0.00031128,4]
[328472605,1717425040757,-500.0,0.00031128,4]
[328472606,1717425040768,-177.41245452,0.00031128,4]
[328472607,1717425040779,-500.0,0.00031128,4]
[328472608,1717425040789,-500.0,0.00031128,4]
[328472609,1717425040799,-860.67,0.00031128,4]
[328472610,1717425040810,-500.0,0.00031128,4]
[328472611,1717425040820,-500.0,0.00031128,4]
[328472612,1717425040831,-751.04,0.00031128,4]
[328472613,1717425040841,-500.0,0.00031128,4]
[328472614,1717425040851,-436.67547294,0.00031128,4]
[328472615,1717425040862,-500.0,0.00031128,4]
[328472616,1717425040872,-500.0,0.00031128,4]
[328472617,1717425040883,-500.0,0.00031128,4]
[328472618,1717425040894,-500.0,0.00031128,4]
[328472619,1717425040904,-500.0,0.00031128,4]
[328472620,1717425040914,-500.0,0.00031128,4]
[328472621,1717425040926,-500.0,0.00031128,4]
[328472622,1717425040938,-500.0,0.00031128,4]
[328472623,1717425040949,-500.0,0.00031128,4]
[328472624,1717425040960,-500.0,0.00031128,4]
[328472625,1717425040971,-500.0,0.00031128,4]
[328472626,1717425040981,-500.0,0.00031128,4]
[328472627,1717425040992,-500.0,0.00031128,4]
[328472628,1717425041002,-541.76,0.00031128,4]
[328472629,1717425041013,-755.11,0.00031128,4]
[328472630,1717425041024,-1168.99,0.00031128,4]
[328472631,1717425041034,-500.0,0.00031128,4]
[328472632,1717425041045,-500.0,0.00031128,4]
[328472633,1717425041056,-500.0,0.00031128,4]
[328472634,1717425041065,-500.0,0.00031128,4]
[328472635,1717425041075,-500.63,0.00031128,4]
[328472636,1717425041086,-500.0,0.00031128,4]
[328472637,1717425041096,-500.0,0.00031128,4]
[328472638,1717425041106,-2769.32,0.00031128,4]
[328472639,1717425041116,-500.0,0.00031128,4]
[328472640,1717425041125,-500.0,0.00031128,4]
[328472641,1717425041136,-500.0,0.00031128,4]
[328472642,1717425041146,-500.0,0.00031128,4]
[328472643,1717425041157,-500.0,0.00031128,4]
[328472644,1717425041167,-378.81,0.00031128,4]
[328472645,1717425041179,-473.32328797,0.00031128,4]
[328472646,1717425041189,-500.0,0.00031128,4]
[328472647,1717425041198,-500.0,0.00031128,4]
[328472648,1717425041210,-500.0,0.00031128,4]
[328472649,1717425041220,-630.68,0.00031128,4]
[328472650,1717425041233,-500.0,0.00031128,4]
[328472651,1717425041244,-500.0,0.00031128,4]
[328472652,1717425041254,-329.52142552,0.00031128,4]
[328472653,1717425041264,-500.0,0.00031128,4]
[328472654,1717425041274,-500.0,0.00031128,4]
[328472655,1717425041284,-616.17,0.00031128,4]
[328472656,1717425041294,-500.0,0.00031128,4]
[328472657,1717425041305,-500.0,0.00031128,4]
[328472658,1717425041316,-500.0,0.00031128,4]
[328472659,1717425041327,-500.0,0.00031128,4]
[328472660,1717425041337,-500.0,0.00031128,4]
[328472661,1717425041347,-500.0,0.00031128,4]
[328472662,1717425041357,-500.0,0.00031128,4]
[328472663,1717425041366,-500.0,0.00031128,4]
[328472664,1717425041586,-500.0,0.00031128,4]
[328472665,1717425041596,-500.0,0.00031128,4]
[328472666,1717425041606,-500.0,0.00031128,4]
[328472667,1717425041616,-500.0,0.00031128,4]
[328472668,1717425041626,-500.0,0.00031128,4]
[328472669,1717425041636,-500.0,0.00031128,4]
[328472670,1717425041646,-500.0,0.00031128,4]
[328472671,1717425041656,-500.0,0.00031128,4]
[328472672,1717425041666,-500.0,0.00031128,4]
[328472673,1717425041677,-500.0,0.00031128,4]
[328472674,1717425041687,-500.0,0.00031128,4]
[328472675,1717425041697,-500.0,0.00031128,4]
[328472676,1717425041707,-500.0,0.00031128,4]
[328472677,1717425041716,-500.0,0.00031128,4]
[328472678,1717425041726,-2585.82,0.00031128,4]
[328472679,1717425041737,-500.0,0.00031128,4]
[328472680,1717425041748,-500.0,0.00031128,4]
[328472681,1717425041758,-500.0,0.00031128,4]
[328472682,1717425041768,-500.0,0.00031128,4]